fUSD/lending_fUSD_20250618
["ID","MTS","AMOUNT","RATE_DAILY","PERIOD"]
[366391839,1750228268166,-1635.79,0.00016767,2]
[366391840,1750228268176,-621.18,0.00016767,2]
[366391841,1750228268185,-1724.27,0.00016767,2]
[366391842,1750228268195,-2741.66,0.00016767,2]
[366391843,1750228268204,-490.0,0.00016767,2]
[366391844,1750228268213,-816.96,0.00016767,2]
[366391845,1750228268223,-1201.99,0.00016767,2]
[366391846,1750228268233,-6106.75,0.00016767,2]
[366391847,1750228268242,-490.0,0.00016767,2]
[366391848,1750228268251,-17594.43,0.00016767,2]
[366391849,1750228268261,-1330.77,0.00016767,2]
[366391850,1750228268271,-2596.87,0.00016767,2]
[366391851,1750228268281,-490.0,0.00016767,2]
[366391852,1750228268291,-2323.03,0.00016767,2]
[366391853,1750228268302,-490.0,0.00016767,2]
[366391854,1750228268312,-1352.34,0.00016767,2]
[366391855,1750228268320,-4695.71,0.00016767,2]
[366391856,1750228268329,-1264.7,0.00016767,2]
[366391857,1750228268339,-906.91,0.00016767,2]
[366391858,1750228268348,-490.0,0.00016767,2]
[366391859,1750228268358,-201.31721911,0.00016767,2]
[366391860,1750228268368,-8109.14,0.00016767,2]
[366391861,1750228268377,-1003.3,0.00016767,2]
[366391862,1750228268386,-1364.12,0.00016767,2]
[366391863,1750228268396,-604.06,0.00016767,2]
[366391864,1750228268406,-1291.35,0.00016767,2]
[366391865,1750228268416,-490.0,0.00016767,2]
[366391866,1750228268425,-490.0,0.00016767,2]
[366391867,1750228268435,-22297.49,0.00016767,2]
[366391868,1750228268445,-1599.41,0.00016767,2]
[366391869,1750228268454,-809.73,0.00016767,2]
[366391870,1750228268463,-3599.46,0.00016767,2]
[366391871,1750228268472,-1337.85,0.00016767,2]
[366391872,1750228268482,-1838.96,0.00016767,2]
[366391873,1750228268491,-490.0,0.00016767,2]
[366391874,1750228268501,-3195.53,0.00016767,2]
[366391875,1750228268511,-953.34,0.00016767,2]
[366391876,1750228268524,-1247.37,0.00016767,2]
[366391877,1750228268534,-2070.27,0.00016767,2]
[366391878,1750228268544,-515.98,0.00016767,2]
[366391879,1750228268554,-6821.37,0.00016767,2]
[366391880,1750228268563,-490.0,0.00016767,2]
[366391881,1750228268573,-912.18,0.00016767,2]
[366391882,1750228268583,-1204.62,0.00016767,2]
[366391883,1750228268593,-490.0,0.00016767,2]
[366391884,1750228268603,-1644.07,0.00016767,2]
[366391885,1750228268612,-4677.6,0.00016767,2]
[366391886,1750228268622,-490.0,0.00016767,2]
[366391887,1750228268631,-1298.54,0.00016767,2]
[366391888,1750228268641,-730.79,0.00016767,2]
[366391889,1750228268650,-3491.36,0.00016767,2]
[366391890,1750228268660,-1391.9,0.00016767,2]
[366391891,1750228268669,-490.0,0.00016767,2]
[366391892,1750228268679,-1743.86,0.00016767,2]
[366391893,1750228268688,-619.96,0.00016767,2]
[366391894,1750228268697,-490.0,0.00016767,2]
[366391895,1750228268706,-14794.3,0.00016767,2]
[366391896,1750228268716,-490.0,0.00016767,2]
[366391897,1750228268725,-1317.23,0.00016767,2]
[366391898,1750228268735,-6713.86,0.00016767,2]
[366391899,1750228268744,-1298.76,0.00016767,2]
[366391900,1750228268754,-1871.26,0.00016767,2]
[366391901,1750228268763,-8496.75,0.00016767,2]
[366391902,1750228268772,-1204.36,0.00016767,2]
[366391903,1750228268782,-1174.88,0.00016767,2]
[366391904,1750228268791,-490.0,0.00016767,2]
[366391905,1750228268800,-604.04,0.00016767,2]
[366391906,1750228268810,-490.0,0.00016767,2]
[366391907,1750228268820,-917.97,0.00016767,2]
[366391908,1750228268830,-853.87,0.00016767,2]
[366391909,1750228268840,-2061.05,0.00016767,2]
[366391910,1750228268850,-290.72905091,0.00016767,2]
[366391911,1750228268860,-1654.92,0.00016767,2]
[366391912,1750228268870,-546.91,0.00016767,2]
[366391913,1750228268880,-949.12,0.00016767,2]
[366391914,1750228268890,-821.18,0.00016767,2]
[366391915,1750228268899,-1926.16,0.00016767,2]
[366391916,1750228268908,-3446.24,0.00016767,2]
[366391917,1750228268918,-490.0,0.00016767,2]
[366391918,1750228268927,-1059.31,0.00016767,2]
[366391919,1750228268940,-1461.57,0.00016767,2]
[366391920,1750228268950,-490.0,0.00016767,2]
[366391921,1750228268960,-3508.56,0.00016767,2]
[366391922,1750228268969,-728.33,0.00016767,2]
[366391923,1750228268979,-490.0,0.00016767,2]
[366391924,1750228268989,-490.0,0.00016767,2]
[366391925,1750228268999,-2662.3,0.00016767,2]
[366391926,1750228269008,-1702.95,0.00016767,2]
[366391927,1750228269019,-490.0,0.00016767,2]
[366391928,1750228269030,-2593.57,0.00016767,2]
[366391929,1750228269040,-1495.29,0.00016767,2]
[366391930,1750228269050,-1776.09,0.00016767,2]
[366391931,1750228269060,-8590.2,0.00016767,2]
[366391932,1750228269069,-2261.65,0.00016767,2]
[366391933,1750228269080,-1868.55,0.00016767,2]
[366391934,1750228269090,-1642.36,0.00016767,2]
[366391935,1750228269100,-176.20201863,0.00016767,2]
[366391936,1750228269110,-692.43,0.00016767,2]
[366391937,1750228269119,-1860.01,0.00016767,2]
[366391938,1750228269129,-490.0,0.00016767,2]
[366391939,1750228269139,-490.0,0.00016767,2]
[366391940,1750228269148,-3807.85,0.00016767,2]
[366391941,1750228269158,-3395.25,0.00016767,2]
[366391942,1750228269168,-2610.07,0.00016767,2]
[366391943,1750228269178,-642.29,0.00016767,2]
[366391944,1750228269188,-490.0,0.00016767,2]
[366391945,1750228269197,-2889.51,0.00016767,2]
[366391946,1750228269208,-490.0,0.00016767,2]
[366391947,1750228269219,-2071.04,0.00016767,2]
[366391948,1750228269228,-685.37,0.00016767,2]
[366391949,1750228269238,-1744.39,0.00016767,2]
[366391950,1750228269247,-490.0,0.00016767,2]
[366391951,1750228269259,-490.0,0.00016767,2]
[366391952,1750228269268,-1207.61,0.00016767,2]
[366391953,1750228269278,-3173.6,0.00016767,2]
[366391954,1750228269287,-5597.88,0.00016767,2]
[366391955,1750228269297,-1151.85,0.00016767,2]
[366391956,1750228269306,-490.0,0.00016767,2]
[366391957,1750228269316,-12878.5,0.00016767,2]
[366391958,1750228269325,-490.0,0.00016767,2]
[366391959,1750228269336,-2422.37,0.00016767,2]
[366391960,1750228269345,-1446.99,0.00016767,2]
[366391961,1750228269355,-1418.79,0.00016767,2]
[366391962,1750228269365,-490.0,0.00016767,2]
[366391963,1750228269375,-6588.14,0.00016767,2]
[366391964,1750228269385,-743.73,0.00016767,2]
[366391965,1750228269396,-1952.64,0.00016767,2]
[366391966,1750228269406,-2892.29,0.00016767,2]
[366391967,1750228269415,-1961.57,0.00016767,2]
[366391968,1750228269424,-490.0,0.00016767,2]
[366391969,1750228269433,-490.0,0.00016767,2]
[366391970,1750228269443,-8461.44,0.00016767,2]
[366391971,1750228269453,-9366.78,0.00016767,2]
[366391972,1750228269463,-1255.38,0.00016767,2]
[366391973,1750228269473,-490.0,0.00016767,2]
[366391974,1750228269483,-490.0,0.00016767,2]
[366391975,1750228269493,-3395.91,0.00016767,2]
[366391976,1750228269503,-767.12,0.00016767,2]
[366391977,1750228269513,-957.43,0.00016767,2]
[366391978,1750228269523,-2403.38,0.00016767,2]
[366391979,1750228269533,-490.0,0.00016767,2]
[366391980,1750228269543,-204.94677755,0.00016767,2]
[366391981,1750228269553,-3179.37,0.00016767,2]
[366391982,1750228269563,-3012.65,0.00016767,2]
[366391983,1750228269573,-7898.84,0.00016767,2]
[366391984,1750228269582,-490.0,0.00016767,2]
[366391985,1750228269591,-490.0,0.00016767,2]
[366391986,1750228269601,-4677.88,0.00016767,2]
[366391987,1750228269611,-2333.91,0.00016767,2]
[366391988,1750228269622,-490.0,0.00016767,2]
[366391989,1750228269632,-490.0,0.00016767,2]
[366391990,1750228269642,-490.0,0.00016767,2]
[366391991,1750228269653,-1846.4,0.00016767,2]
[366391992,1750228269662,-632.87,0.00016767,2]
[366391993,1750228269671,-2189.43,0.00016767,2]
[366391994,1750228269681,-714.33,0.00016767,2]
[366391995,1750228269690,-640.03,0.00016767,2]
[366391996,1750228269699,-2545.49,0.00016767,2]
[366391997,1750228269709,-831.52,0.00016767,2]
[366391998,1750228269718,-490.0,0.00016767,2]
[366391999,1750228269728,-3883.95,0.00016767,2]
[366392000,1750228269738,-490.0,0.00016767,2]
[366392001,1750228269747,-1399.79,0.00016767,2]
[366392002,1750228269757,-490.0,0.00016767,2]
[366392003,1750228269766,-1347.1,0.00016767,2]
[366392004,1750228269776,-880.23,0.00016767,2]
[366392005,1750228269785,-1384.45,0.00016767,2]
[366392006,1750228269794,-699.46,0.00016767,2]
[366392007,1750228269804,-490.0,0.00016767,2]
[366392008,1750228269814,-2519.36,0.00016767,2]
[366392009,1750228269823,-490.0,0.00016767,2]
[366392010,1750228269832,-490.0,0.00016767,2]
[366392011,1750228269842,-8159.29,0.00016767,2]
[366392012,1750228269851,-1332.16,0.00016767,2]
[366392013,1750228269860,-1289.77,0.00016767,2]
[366392014,1750228269870,-490.0,0.00016767,2]
[366392015,1750228269879,-1532.53,0.00016767,2]
[366392016,1750228269888,-4272.05,0.00016767,2]
[366392017,1750228269898,-1104.49,0.00016767,2]
[366392018,1750228269907,-490.0,0.00016767,2]
[366392019,1750228269916,-1650.39,0.00016767,2]
[366392020,1750228269925,-2075.66,0.00016767,2]
[366392021,1750228269936,-490.0,0.00016767,2]
[366392022,1750228269946,-10858.51,0.00016767,2]
[366392023,1750228269956,-4982.32,0.00016767,2]
[366392024,1750228269966,-490.0,0.00016767,2]
[366392025,1750228269976,-490.0,0.00016767,2]
[366392026,1750228269987,-490.0,0.00016767,2]
[366392027,1750228269996,-1003.5,0.00016767,2]
[366392028,1750228270006,-490.0,0.00016767,2]
[366392029,1750228270016,-2307.71,0.00016767,2]
[366392030,1750228270025,-490.0,0.00016767,2]
[366392031,1750228270035,-21780.39,0.00016767,2]
[366392032,1750228270043,-1057.56,0.00016767,2]
[366392033,1750228270053,-563.48,0.00016767,2]
[366392034,1750228270063,-272.70687293,0.00016767,2]
[366392035,1750228270072,-962.03,0.00016767,2]
[366392036,1750228270081,-490.0,0.00016767,2]
[366392037,1750228270091,-444.07384759,0.00016767,2]
[366392038,1750228270100,-744.81,0.00016767,2]
[366392039,1750228270111,-490.0,0.00016767,2]
[366392040,1750228270121,-9938.58,0.00016767,2]
[366392041,1750228270130,-490.0,0.00016767,2]
[366392042,1750228270139,-490.0,0.00016767,2]
[366392043,1750228270149,-1571.35,0.00016767,2]
[366392044,1750228270159,-490.0,0.00016767,2]
[366392045,1750228270169,-2452.38,0.00016767,2]
[366392046,1750228270179,-807.79,0.00016767,2]
[366392047,1750228270191,-1281.0,0.00016767,2]
[366392048,1750228270200,-2516.32,0.00016767,2]
[366392049,1750228270210,-490.0,0.00016767,2]
[366392050,1750228270220,-4235.28,0.00016767,2]
[366392051,1750228270231,-499.69,0.00016767,2]
[366392052,1750228270241,-5518.56,0.00016767,2]
[366392053,1750228270250,-490.0,0.00016767,2]
[366392054,1750228270260,-1399.49,0.00016767,2]
[366392055,1750228270270,-490.0,0.00016767,2]
[366392056,1750228270280,-586.79,0.00016767,2]
[366392057,1750228270290,-541.81,0.00016767,2]
[366392058,1750228270300,-2418.61,0.00016767,2]
[366392059,1750228270310,-1191.44,0.00016767,2]
[366392060,1750228270321,-490.0,0.00016767,2]
[366392061,1750228270330,-495.84,0.00016767,2]
[366392062,1750228270341,-2746.37,0.00016767,2]
[366392063,1750228270351,-6921.38,0.00016767,2]
[366392064,1750228270361,-779.24,0.00016767,2]
[366392065,1750228270371,-1233.66,0.00016767,2]
[366392066,1750228270382,-1515.9,0.00016767,2]
[366392067,1750228270392,-490.0,0.00016767,2]
[366392068,1750228270402,-966.36,0.00016767,2]
[366392069,1750228270412,-490.0,0.00016767,2]
[366392070,1750228270422,-7215.45,0.00016767,2]
[366392071,1750228270431,-490.0,0.00016767,2]
[366392072,1750228270441,-490.0,0.00016767,2]
[366392073,1750228270451,-1844.69,0.00016767,2]
[366392074,1750228270460,-2277.35,0.00016767,2]
[366392075,1750228270470,-260.51643508,0.00016767,2]
[366392076,1750228270480,-580.05,0.00016767,2]
[366392077,1750228270490,-490.0,0.00016767,2]
[366392078,1750228270500,-513.17574363,0.00016767,2]
[366392079,1750228270509,-1771.79,0.00016767,2]
[366392080,1750228270519,-965.28,0.00016767,2]
[366392081,1750228270529,-474.65469258,0.00016767,2]
[366392082,1750228270539,-490.0,0.00016767,2]
[366392083,1750228270549,-490.0,0.00016767,2]
[366392084,1750228270559,-578.55,0.00016767,2]
[366392085,1750228270569,-490.0,0.00016767,2]
[366392086,1750228270579,-490.0,0.00016767,2]
[366392087,1750228270589,-1328.11,0.00016767,2]
[366392088,1750228270600,-490.0,0.00016767,2]
[366392089,1750228270610,-3396.77,0.00016767,2]
[366392090,1750228270619,-8180.45,0.00016767,2]
[366392091,1750228270630,-1599.47,0.00016767,2]
[366392092,1750228270639,-3783.99,0.00016767,2]
[366392093,1750228270652,-3401.94,0.00016767,2]
[366392094,1750228270662,-1385.41,0.00016767,2]
[366392095,1750228270671,-490.0,0.00016767,2]
[366392096,1750228270680,-689.31,0.00016767,2]
[366392097,1750228270690,-1131.95,0.00016767,2]
[366392098,1750228270700,-500.0,0.00016773,2]
[366392099,1750228270711,-500.0,0.00016773,2]
[366392100,1750228270721,-535.97923939,0.00016773,2]
[366392101,1750228270732,-332.37694745,0.00016773,2]
[366392102,1750228270742,-500.0,0.00016773,2]
[366392103,1750228270752,-500.8318122,0.00016773,2]
[366392104,1750228270763,-500.0,0.00016773,2]
[366392105,1750228270773,-501.44999098,0.00016773,2]
[366392106,1750228270783,-160.10125592,0.00016773,2]
[366392107,1750228270793,-506.33715115,0.00016773,2]
[366392108,1750228270802,-160.10190178,0.00016773,2]
[366392109,1750228270812,-500.0,0.00016773,2]
[366392110,1750228270823,-501.50722289,0.00016773,2]
[366392111,1750228270833,-500.0,0.00016773,2]
[366392112,1750228270843,-500.0,0.00016773,2]
[366392113,1750228270854,-500.0,0.00016773,2]
[366392114,1750228270864,-500.0,0.00016773,2]
[366392115,1750228270875,-501.09278441,0.00016773,2]
[366392116,1750228270886,-500.0,0.00016773,2]
[366392117,1750228270896,-500.0,0.00016773,2]
[366392118,1750228270906,-160.10644752,0.00016773,2]
[366392119,1750228270917,-500.0,0.00016773,2]
[366392120,1750228270927,-151.1,0.00016785,2]
[366392121,1750228270938,-956.73897753,0.00016797,2]
[366392122,1750228270949,-568.4734369,0.000168,2]
[366392123,1750228270960,-86526.42522545,0.000168,2]
[366392124,1750228270970,-151.0,0.00016821,2]
[366392125,1750228270981,-1534.8868716,0.00016831,2]
[366392126,1750228270991,-531.5404764,0.00016831,2]
[366392127,1750228271001,-155.92401153,0.00016831,2]
[366392128,1750228271012,-32634.31511764,0.00016831,2]
[366392129,1750228271023,-268.96923273,0.00016831,2]
[366392130,1750228271034,-1372.41502703,0.00016841,2]
[366392131,1750228271044,-250.0,0.00016842,2]
[366392132,1750228271054,-151.0,0.00016876,2]
[366392133,1750228271064,-4060.86,0.00016899,2]
[366392134,1750228271074,-1000.0,0.000169,2]
[366392135,1750228271085,-1000.0,0.000169,2]
[366392136,1750228271095,-1000.0,0.000169,2]
[366392137,1750228271106,-1000.0,0.000169,2]
[366392138,1750228271116,-1000.0,0.000169,2]
[366392139,1750228271126,-1000.0,0.000169,2]
[366392140,1750228271136,-1000.0,0.000169,2]
[366392141,1750228271145,-1000.0,0.000169,2]
[366392142,1750228271155,-1000.0,0.000169,2]
[366392143,1750228271164,-3135.2363372,0.000169,7]
[366392144,1750228271174,-1000.0,0.000169,2]
[366392145,1750228271184,-1372.41502703,0.00016918,2]
[366392146,1750228271195,-189.0,0.00016919,2]
[366392147,1750228271205,-31759.27340935,0.00016924,2]
[366392148,1750228271215,-42551.11956981,0.0001693,5]
[366392149,1750228271225,-4060.86,0.0001693,2]
[366392150,1750228271235,-4060.86,0.0001693,2]
[366392151,1750228271245,-4060.86,0.0001693,2]
[366392152,1750228271255,-4060.86,0.0001693,2]
[366392153,1750228271265,-300.0,0.0001693,2]
[366392154,1750228271276,-300.0,0.0001693,2]
[366392155,1750228271286,-490.0,0.00016931,2]
[366392156,1750228271296,-490.0,0.00016931,2]
[366392157,1750228271306,-829.31,0.00016931,2]
[366392158,1750228271316,-591.98785624,0.00016931,2]
[366392159,1750228271326,-852.7,0.00016931,2]
[366392160,1750228271337,-976.48,0.00016931,2]
[366392161,1750228271347,-769.61,0.00016931,2]
[366392162,1750228271357,-490.0,0.00016931,2]
[366392163,1750228271368,-490.0,0.00016931,2]
[366392164,1750228271377,-490.0,0.00016931,2]
[366392165,1750228271387,-490.0,0.00016931,2]
[366392166,1750228271397,-490.0,0.00016931,2]
[366392167,1750228271407,-490.0,0.00016931,2]
[366392168,1750228271417,-490.0,0.00016931,2]
[366392169,1750228271427,-490.0,0.00016931,2]
[366392170,1750228271437,-490.0,0.00016931,2]
[366392171,1750228271447,-734.69,0.00016931,2]
[366392172,1750228271457,-490.0,0.00016931,2]
[366392173,1750228271467,-596.35,0.00016931,2]
[366392174,1750228271478,-300.0,0.00016931,2]
[366392175,1750228271488,-522.52,0.00016931,2]
[366392176,1750228271498,-490.0,0.00016931,2]
[366392177,1750228271509,-742.5,0.00016931,2]
[366392178,1750228271519,-490.0,0.00016931,2]
[366392179,1750228271529,-873.72,0.00016931,2]
[366392180,1750228271539,-490.0,0.00016931,2]
[366392181,1750228271549,-861.7,0.00016931,2]
[366392182,1750228271559,-490.0,0.00016931,2]
[366392183,1750228271570,-490.0,0.00016931,2]
[366392184,1750228271580,-490.0,0.00016931,2]
[366392185,1750228271590,-490.0,0.00016931,2]
[366392186,1750228271600,-490.0,0.00016931,2]
[366392187,1750228271610,-490.0,0.00016931,2]
[366392188,1750228271620,-490.0,0.00016931,2]
[366392189,1750228271630,-340.61,0.00016931,2]
[366392190,1750228271639,-498.45,0.00016931,2]
[366392191,1750228271650,-490.0,0.00016931,2]
[366392192,1750228271660,-632.37,0.00016931,2]
[366392193,1750228271671,-490.0,0.00016931,2]
[366392194,1750228271681,-490.0,0.00016931,2]
[366392195,1750228271691,-490.0,0.00016931,2]
[366392196,1750228271700,-490.0,0.00016931,2]
[366392197,1750228271710,-728.74,0.00016931,2]
[366392198,1750228271721,-985.73,0.00016931,2]
[366392199,1750228271731,-226.91293536,0.00016931,2]
[366392200,1750228271742,-490.0,0.00016931,2]
[366392201,1750228271752,-490.0,0.00016931,2]
[366392202,1750228271762,-518.23,0.00016931,2]
[366392203,1750228271772,-490.0,0.00016931,2]
[366392204,1750228271782,-490.0,0.00016931,2]
[366392205,1750228271791,-490.0,0.00016931,2]
[366392206,1750228271801,-490.0,0.00016931,2]
[366392207,1750228271811,-490.0,0.00016931,2]
[366392208,1750228271821,-537.07,0.00016931,2]
[366392209,1750228271831,-490.0,0.00016931,2]
[366392210,1750228271843,-490.0,0.00016931,2]
[366392211,1750228271852,-490.0,0.00016931,2]
[366392212,1750228271862,-490.0,0.00016931,2]
[366392213,1750228271872,-490.0,0.00016931,2]
[366392214,1750228271882,-490.0,0.00016931,2]
[366392215,1750228271891,-608.7,0.00016931,2]
[366392216,1750228271902,-1486.82,0.00016931,2]
[366392217,1750228271912,-490.0,0.00016931,2]
[366392218,1750228271922,-322.2,0.00016931,2]
[366392219,1750228271934,-592.13,0.00016931,2]
[366392220,1750228271946,-618.17536299,0.00016931,2]
[366392221,1750228271956,-490.0,0.00016931,2]
[366392222,1750228271966,-490.0,0.00016931,2]
[366392223,1750228271977,-490.0,0.00016931,2]
[366392224,1750228271988,-490.0,0.00016931,2]
[366392225,1750228271997,-490.0,0.00016931,2]
[366392226,1750228272008,-605.41,0.00016931,2]
[366392227,1750228272019,-517.99,0.00016931,2]
[366392228,1750228272029,-490.0,0.00016931,2]
[366392229,1750228272040,-490.0,0.00016931,2]
[366392230,1750228272049,-490.0,0.00016931,2]
[366392231,1750228272060,-490.0,0.00016931,2]
[366392232,1750228272072,-490.0,0.00016931,2]
[366392233,1750228272082,-969.56,0.00016931,2]
[366392234,1750228272093,-645.69,0.00016931,2]
[366392235,1750228272104,-490.0,0.00016931,2]
[366392236,1750228272113,-579.87,0.00016931,2]
[366392237,1750228272124,-490.0,0.00016931,2]
[366392238,1750228272134,-490.0,0.00016931,2]
[366392239,1750228272144,-490.0,0.00016931,2]
[366392240,1750228272155,-620.36,0.00016931,2]
[366392241,1750228272165,-490.0,0.00016931,2]
[366392242,1750228272175,-861.57,0.00016931,2]
[366392243,1750228272185,-490.0,0.00016931,2]
[366392244,1750228272196,-742.97,0.00016931,2]
[366392245,1750228272206,-490.0,0.00016931,2]
[366392246,1750228272217,-490.0,0.00016931,2]
[366392247,1750228272227,-614.64,0.00016931,2]
[366392248,1750228272238,-490.0,0.00016931,2]
[366392249,1750228272248,-490.0,0.00016931,2]
[366392250,1750228272258,-299.66911945,0.00016931,2]
[366392251,1750228272269,-490.0,0.00016931,2]
[366392252,1750228272279,-490.0,0.00016931,2]
[366392253,1750228272290,-490.0,0.00016931,2]
[366392254,1750228272301,-490.0,0.00016931,2]
[366392255,1750228272311,-490.0,0.00016931,2]
[366392256,1750228272321,-490.0,0.00016931,2]
[366392257,1750228272331,-490.0,0.00016931,2]
[366392258,1750228272342,-494.17816979,0.00016931,2]
[366392259,1750228272352,-580.19,0.00016931,2]
[366392260,1750228272362,-490.0,0.00016931,2]
[366392261,1750228272372,-490.0,0.00016931,2]
[366392262,1750228272385,-490.0,0.00016931,2]
[366392263,1750228272396,-688.76,0.00016931,2]
[366392264,1750228272407,-490.0,0.00016931,2]
[366392265,1750228272418,-878.94,0.00016931,2]
[366392266,1750228272429,-490.0,0.00016931,2]
[366392267,1750228272439,-490.0,0.00016931,2]
[366392268,1750228272449,-490.0,0.00016931,2]
[366392269,1750228272459,-648.37,0.00016931,2]
[366392270,1750228272469,-490.0,0.00016931,2]
[366392271,1750228272479,-490.0,0.00016931,2]
[366392272,1750228272489,-490.0,0.00016931,2]
[366392273,1750228272499,-490.0,0.00016931,2]
[366392274,1750228272509,-490.0,0.00016931,2]
[366392275,1750228272519,-490.0,0.00016931,2]
[366392276,1750228272530,-501.05447325,0.00016931,2]
[366392277,1750228272540,-490.0,0.00016931,2]
[366392278,1750228272550,-490.0,0.00016931,2]
[366392279,1750228272561,-490.0,0.00016931,2]
[366392280,1750228272570,-490.0,0.00016931,2]
[366392281,1750228272580,-512.33,0.00016931,2]
[366392282,1750228272591,-490.0,0.00016931,2]
[366392283,1750228272601,-490.0,0.00016931,2]
[366392284,1750228272611,-956.13,0.00016931,2]
[366392285,1750228272621,-490.0,0.00016931,2]
[366392286,1750228272638,-243.833566,0.00016931,2]
[366392287,1750228272652,-490.0,0.00016931,2]
[366392288,1750228272662,-490.0,0.00016931,2]
[366392289,1750228272671,-490.0,0.00016931,2]
[366392290,1750228272681,-490.0,0.00016931,2]
[366392291,1750228272691,-490.0,0.00016931,2]
[366392292,1750228272700,-490.0,0.00016931,2]
[366392293,1750228272710,-490.0,0.00016931,2]
[366392294,1750228272720,-490.0,0.00016931,2]
[366392295,1750228272730,-490.0,0.00016931,2]
[366392296,1750228272740,-490.0,0.00016931,2]
[366392297,1750228272750,-726.53,0.00016931,2]
[366392298,1750228272760,-490.0,0.00016931,2]
[366392299,1750228272770,-490.0,0.00016931,2]
[366392300,1750228272780,-570.48380333,0.00016931,2]
[366392301,1750228272791,-490.0,0.00016931,2]
[366392302,1750228272800,-1128.09,0.00016931,2]
[366392303,1750228272811,-490.0,0.00016931,2]
[366392304,1750228272821,-417.42832223,0.00016931,2]
[366392305,1750228272832,-490.0,0.00016931,2]
[366392306,1750228272843,-490.0,0.00016931,2]
[366392307,1750228272852,-490.0,0.00016931,2]
[366392308,1750228272863,-697.97,0.00016931,2]
[366392309,1750228272872,-757.19,0.00016931,2]
[366392310,1750228272882,-500.83986138,0.00016931,2]
[366392311,1750228272892,-490.0,0.00016931,2]
[366392312,1750228272902,-490.0,0.00016931,2]
[366392313,1750228272911,-490.0,0.00016931,2]
[366392314,1750228272921,-563.74,0.00016931,2]
[366392315,1750228272932,-490.0,0.00016931,2]
[366392316,1750228272947,-592.11,0.00016931,2]
[366392317,1750228272957,-1295.9,0.00016931,2]
[366392318,1750228273253,-519.41,0.00016931,2]
[366392319,1750228273272,-490.0,0.00016931,2]
[366392320,1750228273282,-1407.43,0.00016931,2]
[366392321,1750228273292,-490.0,0.00016931,2]
[366392322,1750228273303,-490.0,0.00016931,2]
[366392323,1750228273312,-490.0,0.00016931,2]
[366392324,1750228273322,-897.75,0.00016931,2]
[366392325,1750228273333,-801.35,0.00016931,2]
[366392326,1750228273351,-490.0,0.00016931,2]
[366392327,1750228273361,-490.0,0.00016931,2]
[366392328,1750228273371,-524.26,0.00016931,2]
[366392329,1750228273381,-564.16,0.00016931,2]
[366392330,1750228273390,-490.0,0.00016931,2]
[366392331,1750228273399,-490.0,0.00016931,2]
[366392332,1750228273409,-1565.9,0.00016931,2]
[366392333,1750228273420,-275.72395825,0.00016931,2]
[366392334,1750228273430,-490.0,0.00016931,2]
[366392335,1750228273440,-901.34,0.00016931,2]
[366392336,1750228273450,-592.18,0.00016931,2]
[366392337,1750228273460,-490.0,0.00016931,2]
[366392338,1750228273470,-490.0,0.00016931,2]